bitfinex/quotes_ETHUSD_20250802
["timestamp","ask_amount","ask_price","bid_price","bid_amount"]
[1754133054760,4.402,3492.2,3491.8,0.4785]
[1754133055061,4.402,3492.2,3491.9,0.0024]
[1754133055233,4.402,3492.2,3492.0,0.4761]
[1754133055437,4.402,3492.2,3492.1,0.0024]
[1754133055759,4.402,3492.2,3492.1,0.4785]
[1754133056058,4.402,3492.2,3492.1,8.49922134]
[1754133056262,4.402,3492.2,3492.1,9.34914347]
[1754133057460,4.402,3492.2,3492.1,1.32602213]
[1754133057639,4.402,3492.2,3492.1,1.32842213]
[1754133057850,30.0,3492.9,3492.1,1.32842213]
[1754133058141,4.402,3492.8,3492.2,0.4785]
[1754133058353,4.402,3492.8,3492.3,0.93491435]
[1754133058761,4.402,3492.8,3492.4,0.4785]
[1754133058963,4.402,3492.8,3492.5,0.0024]
[1754133059167,4.402,3492.8,3492.6,0.4761]
[1754133059527,6.881,3493.0,3492.7,0.4761]
[1754133059733,34.402,3492.9,3492.8,0.84968213]
[1754133060173,30.0,3492.9,3492.8,0.84968213]
[1754133060478,4.401,3492.9,3492.8,1.32818213]
[1754133061329,6.881,3493.0,3492.8,1.32818213]
[1754133061529,4.402,3492.9,3492.8,1.32818213]
[1754133061730,4.402,3492.9,3492.8,0.84968213]
[1754133062355,4.402,3492.9,3492.8,1.32578213]
[1754133062560,4.402,3492.9,3492.8,1.32818213]
[1754133063766,30.0,3493.7,3492.8,1.32818213]
[1754133063965,4.4,3493.6,3493.0,8.02072134]
[1754133064171,4.4,3493.6,3493.1,1.41099035]
[1754133064477,4.4,3493.6,3493.2,0.4761]
[1754133065602,4.4,3493.6,3493.1,0.93489035]
[1754133065603,30.0,3493.4,3493.1,0.93489035]
[1754133065900,4.87,3493.3,3492.9,0.4761]
[1754133066106,30.0,3493.2,3492.6,0.002]
[1754133066602,30.0,3493.2,3492.7,0.4761]
[1754133067106,30.0,3493.1,3492.7,0.4761]
[1754133067306,4.4,3493.0,3492.7,0.4761]
[1754133069087,4.4,3493.0,3492.8,0.4761]
[1754133069306,4.4,3493.0,3492.9,0.84988213]
[1754133070977,4.869,3493.0,3492.9,0.84988213]
[1754133071483,6.587,3493.0,3492.9,0.84988213]
[1754133071669,4.869,3493.0,3492.9,0.84988213]
[1754133071872,5.3448,3493.0,3492.9,0.84988213]
[1754133072825,4.869,3493.0,3492.9,0.84988213]
[1754133073027,4.4,3493.0,3492.9,0.84988213]
[1754133076812,0.21821224,3493.8,3492.9,1.32598213]
[1754133076813,1.718,3493.5,3492.9,1.32598213]
[1754133076973,4.48364073,3493.4,3493.3,8.02072134]
[1754133077176,4.394,3493.4,3493.3,8.49682134]
[1754133077614,30.0,3493.3,3492.8,8.02072134]
[1754133077909,30.0,3493.1,3492.6,0.002]
[1754133078111,4.394,3493.0,3492.6,0.002]
[1754133078315,4.394,3493.0,3492.6,0.4781]
[1754133078676,4.863,3493.0,3492.6,0.4781]
[1754133080094,4.8698,3493.0,3492.6,0.002]
[1754133080299,4.394,3493.0,3492.6,0.4781]
[1754133080618,4.394,3493.0,3492.7,0.4761]
[1754133080995,0.469,3492.9,3492.6,0.002]
[1754133081194,0.469,3492.9,3492.6,0.85188213]
[1754133081686,0.9225,3492.9,3492.6,0.85188213]
[1754133082107,0.9052,3492.8,3492.6,0.85188213]
[1754133082306,4.394,3492.7,3492.6,0.85188213]
[1754133082507,4.8457,3492.7,3492.6,0.85188213]
[1754133082709,5.2992,3492.7,3492.6,0.002]
[1754133084984,4.8457,3492.7,3492.6,0.002]
[1754133087009,5.2992,3492.7,3492.6,0.002]
[1754133091706,7.0172,3492.7,3492.6,0.002]
[1754133097848,37.5672,3492.7,3492.6,0.002]
[1754133098815,37.65686477,3492.7,3492.6,0.002]
[1754133100306,40.65686477,3492.7,3492.6,0.002]
[1754133103030,43.67686477,3492.7,3492.6,0.002]
[1754133103273,46.68930441,3492.7,3492.6,0.002]
[1754133104269,43.82618992,3492.7,3492.6,0.002]
[1754133104950,39.43218992,3492.7,3492.6,0.002]
[1754133105157,43.82618992,3492.7,3492.6,0.002]
[1754133105358,43.82718992,3492.7,3492.6,0.002]
[1754133108593,13.82718992,3492.7,3492.6,0.002]
[1754133108881,16.69130441,3492.7,3492.6,0.002]
[1754133109069,46.69130441,3492.7,3492.6,0.002]
[1754133109270,43.82818992,3492.7,3492.6,0.002]
[1754133110175,46.69130441,3492.7,3492.6,0.002]
[1754133110376,47.50448969,3492.7,3492.6,0.002]
[1754133110679,47.14217347,3492.7,3492.6,0.002]
[1754133110881,47.50451754,3492.7,3492.6,0.002]
[1754133111583,47.79131754,3492.7,3492.6,0.002]
[1754133111754,41.15144243,3492.3,3492.2,0.002]
[1754133111954,52.97397626,3492.3,3492.2,0.002]
[1754133112180,53.86857626,3492.3,3492.2,0.002]
[1754133113284,54.23092033,3492.3,3492.2,0.002]
[1754133114359,50.55429262,3492.3,3492.2,0.002]
[1754133114682,53.86857626,3492.3,3492.2,0.002]
[1754133115484,50.00429262,3492.3,3492.2,0.002]
[1754133116393,53.86857626,3492.3,3492.2,0.002]
[1754133117045,23.86859137,3492.3,3492.2,0.002]
[1754133117246,51.00514894,3492.3,3492.2,0.002]
[1754133117501,53.86859137,3492.3,3492.2,0.002]
[1754133117780,51.00514894,3492.3,3492.2,0.002]
[1754133118546,53.86859137,3492.3,3492.2,0.002]
[1754133118744,51.00514894,3492.3,3492.2,0.002]
[1754133118946,53.86859137,3492.3,3492.2,0.002]
[1754133119261,51.00514894,3492.3,3492.2,0.002]
[1754133119446,23.86859137,3492.3,3492.2,0.002]
[1754133119779,53.86859137,3492.3,3492.2,0.002]
[1754133120952,46.15930773,3492.3,3492.2,0.002]
[1754133121153,50.55430773,3492.3,3492.2,0.002]
[1754133121686,49.65970773,3492.3,3492.2,0.002]
[1754133122088,50.10050773,3492.3,3492.2,0.002]
[1754133123190,50.55430773,3492.3,3492.2,0.002]
[1754133123559,50.70362095,3492.3,3492.2,0.002]
[1754133123958,53.56706338,3492.3,3492.2,0.002]
[1754133124159,54.38024866,3492.3,3492.2,0.002]
[1754133127570,61.40024866,3492.3,3492.2,0.002]
[1754133129259,61.68704866,3492.3,3492.2,0.002]
[1754133131300,0.55,3491.2,3491.1,0.002]
[1754133131500,39.75270773,3491.2,3491.1,0.002]
[1754133131892,40.19350773,3491.2,3491.1,0.002]
[1754133132763,43.27124423,3491.2,3491.1,0.002]
[1754133132970,17.19588544,3491.2,3491.1,0.002]
[1754133133371,54.21588544,3491.2,3491.1,0.002]
[1754133136202,54.21591217,3491.2,3491.1,0.002]
[1754133136408,42.59112633,3491.2,3491.1,0.002]
[1754133136592,46.43712633,3491.2,3491.1,0.4891]
[1754133137315,39.41712633,3491.2,3491.1,0.4915]
[1754133137612,36.41712633,3491.2,3491.1,1.09341573]
[1754133137814,39.96712633,3491.2,3491.1,1.09341573]
[1754133138114,36.41712633,3491.2,3491.1,0.4915]
[1754133138714,39.96712633,3491.2,3491.1,0.4915]
[1754133139510,39.96712633,3491.2,3491.1,0.4891]
[1754133140105,39.96712633,3491.2,3491.1,0.4915]
[1754133140674,39.96612633,3491.2,3491.1,0.4915]
[1754133140906,39.96612633,3491.2,3491.1,0.4891]
[1754133141308,39.96612633,3491.2,3491.1,0.4915]
[1754133141909,35.57112633,3491.2,3491.1,0.4915]
[1754133142216,37.69812633,3491.2,3491.1,0.4915]
[1754133142514,37.69812633,3491.2,3491.1,1.34584891]
[1754133143115,34.69812633,3491.2,3491.1,1.34584891]
[1754133143597,34.60839187,3491.2,3491.1,1.34584891]
[1754133145684,34.395,3491.2,3491.1,1.34584891]
[1754133146691,4.61036209,3491.2,3491.1,1.34344891]
[1754133147027,34.61036209,3491.2,3491.1,1.34344891]
[1754133147223,34.61036209,3491.2,3491.1,0.4891]
[1754133148721,4.61036209,3491.2,3491.1,0.4891]
[1754133148901,34.61036209,3491.2,3491.1,0.4891]
[1754133150091,34.61036209,3491.2,3491.1,0.002]
[1754133150725,34.61036209,3491.2,3491.1,0.487]
[1754133151029,34.70006737,3491.2,3491.1,0.002]
[1754133151212,36.42406737,3491.2,3491.1,0.002]
[1754133152434,36.33436209,3491.2,3491.1,0.487]
[1754133152731,36.42406746,3491.2,3491.1,0.487]
[1754133153024,36.42406746,3491.2,3491.1,0.002]
[1754133154130,37.92056746,3491.2,3491.1,0.002]
[1754133155740,40.92056746,3491.2,3491.1,0.002]
[1754133156128,39.97406746,3491.2,3491.1,0.002]
[1754133156640,40.92057415,3491.2,3491.1,0.002]
[1754133157311,35.02907415,3491.2,3491.1,0.487]
[1754133157639,39.42306446,3491.2,3491.1,0.487]
[1754133157928,39.33336209,3491.2,3491.1,0.487]
[1754133158143,36.42306578,3491.2,3491.1,0.002]
[1754133158346,37.91956578,3491.2,3491.1,0.002]
[1754133158652,40.91956578,3491.2,3491.1,0.002]
[1754133159300,41.06908155,3491.2,3491.1,0.002]
[1754133161263,47.40426739,3491.2,3491.1,0.002]
[1754133163055,17.40426739,3491.2,3491.1,0.002]
[1754133163353,47.40426739,3491.2,3491.1,0.002]
[1754133164158,17.40426739,3491.2,3491.1,0.002]
[1754133164358,47.40426739,3491.2,3491.1,0.002]
[1754133168455,47.40430254,3491.2,3491.1,0.002]
[1754133168840,47.76664661,3491.2,3491.1,0.002]
[1754133169240,17.76664661,3491.2,3491.1,0.002]
[1754133169444,47.76664661,3491.2,3491.1,0.002]
[1754133170247,17.76664661,3491.2,3491.1,0.002]
[1754133170446,47.76664661,3491.2,3491.1,0.002]
[1754133170645,47.88155361,3491.2,3491.1,0.002]
[1754133174270,47.88155361,3491.2,3490.8,0.002]
[1754133174271,11.15859079,3490.9,3490.8,0.002]
[1754133174444,46.4266135,3490.9,3490.8,0.002]
[1754133174651,47.3340135,3490.9,3490.8,0.002]
[1754133175250,47.48384779,3490.9,3490.8,0.002]
[1754133175750,47.77064779,3490.9,3490.8,0.002]
[1754133176160,48.63257179,3490.9,3490.8,0.002]
[1754133177687,3.41524741,3490.1,3490.0,49.69452679]
[1754133177862,45.64300151,3490.1,3490.0,49.69452679]
[1754133178062,46.55040151,3490.1,3490.0,49.69452679]
[1754133178364,47.41233251,3490.1,3490.0,49.69452679]
[1754133178851,44.5470851,3490.1,3490.0,49.69452679]
[1754133179245,44.0710851,3490.1,3490.0,49.69452679]
[1754133179443,16.93633251,3490.1,3490.0,49.69452679]
[1754133179673,47.08591197,3490.1,3490.0,49.69452679]
[1754133179883,47.56191197,3490.1,3490.0,49.69452679]
[1754133180189,47.56191733,3490.1,3490.0,49.69452679]
[1754133180345,39.39526992,3490.1,3490.0,49.69452679]
[1754133180683,39.35733892,3490.1,3490.0,50.17122679]
[1754133180885,34.96333892,3490.1,3490.0,50.17122679]
[1754133181050,36.35833892,3490.1,3490.0,53.03947386]
[1754133181251,36.35833892,3490.1,3490.0,50.17122679]
[1754133181460,39.35833892,3490.1,3490.0,50.16882679]
[1754133181661,39.90833892,3490.1,3490.0,50.16882679]
[1754133181851,34.96333892,3490.1,3490.0,50.17122679]
[1754133182051,39.35833892,3490.1,3490.0,50.17122679]
[1754133182354,39.90833892,3490.1,3490.0,50.17122679]
[1754133183050,34.96333892,3490.1,3490.0,50.17122679]
[1754133183282,39.35833892,3490.1,3490.0,50.17122679]
[1754133183891,31.96333892,3490.1,3490.0,53.03947386]
[1754133184184,36.118,3490.1,3490.0,53.03947386]
[1754133184349,31.724,3490.1,3490.0,53.03947386]
[1754133184550,36.118,3490.1,3490.0,53.03947386]
[1754133184781,31.724,3490.1,3490.0,58.5663599]
[1754133185095,4.394,3490.1,3490.0,58.5663599]
[1754133185394,36.118,3490.1,3490.0,58.5663599]
[1754133186288,31.724,3490.1,3490.0,55.69811283]
[1754133186484,34.394,3490.1,3490.0,55.69811283]
[1754133186685,30.0,3490.6,3490.0,55.69811283]
[1754133186889,3.0,3490.3,3490.0,55.22141283]
[1754133187125,34.394,3490.2,3490.1,0.4767]
[1754133187391,4.394,3490.2,3490.1,8.86943311]
[1754133187554,34.394,3490.2,3490.1,8.39513311]
[1754133187749,34.394,3490.2,3490.1,8.86943311]
[1754133187951,30.0,3490.2,3490.1,8.87183311]
[1754133188388,6.891,3490.6,3490.1,8.87183311]
[1754133188695,4.394,3490.5,3490.4,5.52688604]
[1754133188996,34.394,3490.5,3490.4,5.52688604]
[1754133189297,34.394,3490.5,3490.2,2.86824707]
[1754133189516,30.0,3490.4,3490.2,2.86824707]
[1754133189659,34.394,3490.3,3490.2,2.87064707]
[1754133189864,34.394,3490.3,3490.2,8.39753311]
[1754133190172,34.394,3490.3,3490.2,0.4743]
[1754133191200,36.118,3490.3,3490.0,49.69452679]
[1754133191388,30.0,3490.1,3490.0,49.69452679]
[1754133191575,34.393,3490.1,3490.0,49.69452679]
[1754133192178,34.393,3490.1,3490.0,50.16882679]
[1754133194989,34.393,3490.1,3490.0,49.69452679]
[1754133195508,34.393,3490.1,3490.0,50.16882679]
[1754133196005,34.393,3490.1,3490.0,49.69452679]
[1754133196504,36.117,3490.1,3490.0,49.69452679]
[1754133196884,36.117,3490.1,3490.0,50.16882679]
[1754133198230,31.724,3490.1,3490.0,50.16882679]
[1754133198388,6.117,3490.1,3490.0,52.80058651]
[1754133199811,6.117,3490.1,3490.0,52.79818651]
[1754133200111,36.117,3490.1,3490.0,49.69452679]
[1754133200312,36.5484,3490.1,3490.0,49.69452679]
[1754133200914,36.117,3490.1,3490.0,49.69452679]
[1754133201219,36.5484,3490.1,3490.0,49.69452679]
[1754133201919,36.117,3490.1,3490.0,49.69452679]
[1754133203092,6.117,3490.1,3490.0,49.69452679]
[1754133203282,36.117,3490.1,3490.0,49.69452679]
[1754133203913,36.5541,3490.1,3490.0,49.69452679]
[1754133204819,40.68473442,3490.1,3490.0,49.69452679]
[1754133204983,43.70473442,3490.1,3490.0,49.69452679]
[1754133205182,40.68473442,3490.1,3490.0,49.69452679]
[1754133205693,40.83429612,3490.1,3490.0,49.69452679]
[1754133206231,43.69954353,3490.1,3490.0,49.69452679]
[1754133206429,40.83429612,3490.1,3490.0,49.69452679]
[1754133206735,43.69954353,3490.1,3490.0,49.69452679]
[1754133208793,40.83429612,3490.1,3490.0,49.69452679]
[1754133211532,36.44129612,3490.1,3490.0,49.69452679]
[1754133211853,31.96329612,3490.1,3490.0,50.14522679]
[1754133212033,39.20673442,3490.1,3490.0,50.77362247]
[1754133212197,7.48273442,3490.1,3490.0,50.14522679]
[1754133212392,34.48273442,3490.1,3490.0,50.14522679]
[1754133212829,34.48273442,3490.1,3490.0,50.14762679]
[1754133212996,34.48273442,3490.1,3490.0,50.14962679]
[1754133213213,34.48373442,3490.1,3490.0,50.14962679]
[1754133214445,34.48373442,3490.1,3490.0,53.01787386]
[1754133214615,34.394,3490.1,3490.0,53.01787386]
[1754133216256,34.394,3490.1,3490.0,49.69652679]
[1754133216433,36.118,3490.1,3490.0,50.14722679]
[1754133216952,36.118,3490.1,3490.0,49.69652679]
[1754133217455,10.596,3490.1,3490.0,49.69652679]
[1754133217617,10.68573679,3490.1,3490.0,49.69652679]
[1754133217813,40.68573679,3490.1,3490.0,49.69652679]
[1754133219952,39.75773679,3490.1,3490.0,49.69652679]
[1754133220129,39.20773679,3490.1,3490.0,49.69652679]
[1754133220447,39.20773679,3490.1,3490.0,50.14722679]
[1754133220641,39.20773679,3490.1,3490.0,49.69652679]
[1754133221637,40.68573679,3490.1,3490.0,49.69652679]
[1754133223664,40.68574662,3490.1,3490.0,49.69652679]
[1754133226849,9.20674662,3490.1,3490.0,49.69652679]
[1754133227170,39.75674662,3490.1,3490.0,50.14722679]
[1754133227566,35.36474662,3490.1,3490.0,49.69652679]
[1754133227756,35.36474662,3490.1,3490.0,50.14722679]
[1754133227757,39.20674662,3490.1,3490.0,50.14722679]
[1754133227953,9.20674662,3490.1,3490.0,50.14722679]
[1754133228264,31.81474662,3490.1,3490.0,53.01787386]
[1754133228471,0.09074662,3490.1,3490.0,53.01787386]
[1754133228671,4.392,3490.1,3490.0,53.01787386]
[1754133229178,0.001,3490.5,3490.0,53.01787386]
[1754133229376,30.0,3490.9,3490.4,8.05380603]
[1754133229541,30.0,3491.0,3490.8,8.05380603]
[1754133229736,4.48171227,3490.9,3490.8,8.05620603]
[1754133230175,34.48171227,3490.9,3490.3,8.05380603]
[1754133230363,30.0,3490.7,3490.4,0.4507]
[1754133230672,6.891,3491.1,3490.4,0.4507]
[1754133230673,4.48171227,3490.6,3490.5,0.8506906]
[1754133230971,4.48171227,3490.6,3490.5,1.3013906]
[1754133231175,34.48171227,3490.6,3490.5,1.3013906]
[1754133231475,4.48171227,3490.6,3490.5,1.3013906]
[1754133233297,4.48171227,3490.6,3490.5,1.3037906]
[1754133233459,4.392,3490.6,3490.5,1.3037906]
[1754133233788,4.48171151,3490.6,3490.5,1.3037906]
[1754133234316,4.392,3490.6,3490.5,1.3013906]
[1754133234510,4.4817125,3490.6,3490.5,1.3013906]
[1754133234660,4.48171402,3490.6,3490.5,1.3037906]
[1754133234867,6.891,3491.1,3490.5,1.3037906]
[1754133235162,6.891,3491.1,3491.0,8.05380603]
[1754133235466,11.282,3491.1,3491.0,8.53150603]
[1754133236808,4.391,3491.1,3491.0,8.53150603]
[1754133236964,1.82087623,3491.1,3491.0,8.53150603]
[1754133237160,6.89,3492.4,3491.0,8.53150603]
[1754133237361,4.391,3492.1,3491.6,8.05380603]
[1754133237593,4.391,3492.1,3491.7,0.4753]
[1754133237796,4.391,3492.1,3491.8,0.4753]
[1754133237998,4.391,3492.1,3491.6,8.05380603]
[1754133238198,30.0,3492.1,3491.9,0.4777]
[1754133238364,4.392,3492.0,3491.9,0.4753]
[1754133239301,6.89,3492.4,3491.9,0.4753]
[1754133239465,4.392,3492.1,3492.0,0.02863688]
[1754133239801,4.392,3492.1,3492.0,0.4753]
[1754133240002,6.89,3492.4,3492.0,0.4753]
[1754133240178,6.89,3492.4,3492.1,8.52910603]
[1754133240616,4.393,3492.2,3492.1,8.52910603]
[1754133240785,4.393,3492.2,3492.1,9.46754769]
[1754133241312,4.393,3492.2,3492.1,9.46994769]
[1754133241865,4.393,3492.2,3492.1,9.46754769]
[1754133242418,4.393,3492.2,3492.1,9.46994769]
[1754133244201,4.393,3492.2,3492.1,8.05380603]
[1754133244862,4.393,3492.2,3492.1,8.52910603]
[1754133245063,4.392,3492.2,3492.1,8.52910603]
[1754133245267,4.393,3492.2,3492.1,8.52910603]
[1754133245480,4.393,3492.2,3492.1,8.53150603]
[1754133245682,0.001,3492.6,3492.2,3.0]
[1754133246004,4.392,3492.8,3492.3,4.42063442]
[1754133246302,0.001,3493.1,3493.0,8.05380603]
[1754133246503,4.395,3493.1,3493.0,8.05380603]
[1754133246682,4.395,3493.1,3493.0,8.52910603]
[1754133247245,4.395,3493.1,3493.0,8.05380603]
[1754133247502,4.395,3493.1,3493.0,8.52910603]
[1754133248012,4.395,3493.1,3493.0,9.46808123]
[1754133248905,4.395,3493.1,3493.0,8.99278123]
[1754133251729,4.395,3493.1,3493.0,9.46808123]
[1754133252829,0.001,3493.1,3493.0,9.46808123]
[1754133253124,4.39,3493.1,3493.0,9.46808123]
[1754133253937,4.39,3493.1,3493.0,8.99278123]
[1754133254321,4.39,3493.1,3493.0,9.46808123]
[1754133254632,5.3512,3493.1,3492.6,3.0]
[1754133254929,0.4677,3493.0,3492.6,3.0]
[1754133255115,0.4677,3492.9,3492.6,3.0]
[1754133256435,4.389,3493.1,3492.8,0.1432]
[1754133256735,4.389,3493.1,3493.0,8.05380603]
[1754133256920,4.389,3493.1,3493.0,8.52910603]
[1754133257398,4.389,3493.1,3493.0,8.05380603]
[1754133259912,4.389,3493.1,3492.6,8.05380603]
[1754133259913,5.3502,3493.1,3492.6,8.05380603]
[1754133260133,0.9612,3493.0,3492.7,0.8529106]
[1754133260445,0.9612,3492.9,3492.7,0.8529106]
[1754133261052,0.4677,3492.8,3492.7,0.8529106]
[1754133261461,4.389,3493.1,3492.7,0.88154174]
[1754133261827,5.3353,3493.1,3492.7,0.8529106]
[1754133262031,0.4619,3493.0,3492.8,1.23820166]
[1754133262298,0.4619,3493.0,3492.9,0.0286295]
[1754133262938,0.9463,3493.0,3492.8,1.23820166]
[1754133263139,0.4619,3492.9,3492.8,1.23820166]
[1754133263852,0.9463,3492.9,3492.8,1.23820166]
[1754133264052,0.9463,3492.9,3492.1,1.7139006]
[1754133264256,4.389,3493.1,3492.1,1.7139006]
[1754133264455,0.9463,3492.8,3492.1,1.7139006]
[1754133264618,4.389,3493.1,3492.1,1.7139006]
[1754133264619,5.3343,3492.7,3492.1,1.7139006]
[1754133264819,0.9463,3492.6,3492.2,1.47564066]
[1754133265044,0.9463,3492.5,3492.2,1.47564066]
[1754133265245,0.4844,3492.5,3492.2,1.47564066]
[1754133265441,0.4619,3492.4,3492.2,1.47564066]
[1754133266320,5.3343,3492.7,3492.2,1.47564066]
[1754133266655,0.4619,3492.6,3492.3,0.66470413]
[1754133266957,0.4844,3492.6,3492.3,0.66470413]
[1754133267162,0.4619,3492.5,3492.3,0.66470413]
[1754133267631,0.9463,3492.4,3492.3,0.66470413]
[1754133267837,0.4619,3492.6,3492.3,0.66470413]
[1754133268234,0.4619,3492.6,3492.4,0.29934954]
[1754133268460,0.4619,3492.5,3492.4,0.29934954]
[1754133268666,0.4619,3492.5,3492.3,0.66470413]
[1754133269850,0.4844,3492.6,3492.4,8.05380603]
[1754133270047,4.388,3492.7,3492.4,8.05380603]
[1754133270349,0.4619,3492.6,3492.4,8.05380603]
[1754133270655,4.8499,3492.7,3492.4,8.05380603]
[1754133270960,4.388,3492.7,3492.5,0.91760102]
[1754133271161,0.4619,3492.6,3492.5,0.91760102]
[1754133273764,4.8499,3492.6,3492.5,0.91760102]
[1754133274363,5.3343,3492.6,3492.4,8.05380603]
[1754133274563,0.4619,3492.5,3492.4,8.05380603]
[1754133274766,0.9463,3492.5,3492.4,8.05380603]
[1754133275168,0.4844,3492.5,3491.7,8.05380603]
[1754133275368,0.9463,3492.5,3491.6,4.388]
[1754133275659,0.9463,3492.4,3491.7,4.2585006]
[1754133275860,4.388,3492.3,3491.7,4.2585006]
[1754133276042,5.3343,3492.2,3491.7,4.2585006]
[1754133276243,0.9463,3492.1,3491.7,4.2585006]
[1754133276428,0.4619,3492.0,3491.7,4.2585006]
[1754133276633,4.8499,3492.2,3491.8,0.86465006]
[1754133276964,0.001,3493.1,3491.9,8.05380603]
[1754133277301,5.3343,3493.0,3492.4,8.05380603]
[1754133277652,30.0,3492.8,3492.4,8.05380603]
[1754133277836,0.9463,3492.7,3492.4,8.05380603]
[1754133278168,5.3343,3492.6,3492.4,8.05380603]
[1754133278370,4.8724,3492.6,3492.4,8.05380603]
[1754133278664,0.9463,3492.5,3491.9,8.19700603]
[1754133278966,0.4619,3492.4,3492.2,5.5195512]
[1754133279170,0.9463,3492.4,3492.2,5.5195512]
[1754133279347,4.388,3492.3,3492.2,5.5195512]
[1754133280271,5.3343,3492.3,3492.2,5.5195512]
[1754133280773,4.8499,3492.3,3492.2,5.5195512]
[1754133281174,4.388,3492.3,3492.2,6.07150632]
[1754133281360,4.388,3492.3,3492.2,6.52900632]
[1754133282978,4.388,3492.3,3492.2,6.07150632]
[1754133283671,5.3343,3492.3,3492.2,6.07150632]
[1754133283846,5.3343,3492.3,3492.1,5.5195512]
[1754133284047,4.388,3492.3,3492.1,5.5195512]
[1754133284354,0.9463,3492.2,3492.1,5.5195512]
[1754133287387,0.4619,3492.2,3492.1,5.5195512]
[1754133287757,4.388,3492.3,3492.1,5.5195512]
[1754133288080,1.725,3493.1,3492.2,0.55195512]
[1754133288081,0.4844,3493.0,3492.2,0.55195512]
[1754133288397,4.8499,3492.9,3492.8,5.5195512]
[1754133288899,5.3343,3492.9,3492.8,5.5195512]
[1754133290327,0.001,3493.1,3492.8,5.5195512]
[1754133290468,4.8499,3493.0,3492.8,6.07150632]
[1754133290667,0.9463,3492.9,3492.8,5.5195512]
[1754133291096,0.9463,3492.9,3492.5,5.5195512]
[1754133291299,0.9463,3492.8,3492.5,5.5195512]
[1754133291499,0.4619,3492.7,3492.5,5.5195512]
[1754133291715,4.388,3493.0,3492.6,0.55195512]
[1754133291904,0.001,3493.1,3492.9,5.5195512]
[1754133292071,0.001,3493.1,3493.0,0.02862868]
[1754133292276,4.389,3493.1,3493.0,0.02862868]
[1754133292487,4.389,3493.1,3492.9,5.5195512]
[1754133292715,4.389,3493.1,3493.0,0.59783512]
[1754133292882,4.389,3493.1,3492.9,5.5195512]
[1754133293082,0.484,3493.0,3492.6,5.5195512]
[1754133293288,0.484,3492.9,3492.6,5.5195512]
[1754133293488,4.388,3492.8,3492.6,5.5195512]
[1754133293888,4.8524,3492.8,3492.6,5.5195512]
[1754133294191,4.388,3492.8,3492.7,0.55195512]
[1754133294590,4.388,3492.8,3492.6,5.5195512]
[1754133294591,5.3364,3492.8,3492.6,5.5195512]
[1754133294772,4.388,3492.8,3492.6,5.5195512]
[1754133294973,0.9484,3492.7,3492.6,5.5195512]
[1754133295233,0.9484,3492.7,3492.3,5.5195512]
[1754133295522,0.9484,3492.6,3492.3,5.5195512]
[1754133295722,0.9484,3492.6,3492.3,6.56550183]
[1754133295878,4.388,3492.8,3492.3,6.56550183]
[1754133296079,0.9484,3492.5,3492.3,6.56550183]
[1754133296286,0.4644,3492.4,3492.3,6.56550183]
[1754133297999,0.9484,3492.4,3492.3,6.56550183]
[1754133298726,0.4644,3492.4,3492.3,6.56550183]
[1754133300244,4.388,3492.5,3492.3,5.5195512]
[1754133300387,0.9484,3492.4,3492.0,5.5195512]
[1754133300736,0.9484,3492.4,3492.3,5.5195512]
[1754133300912,4.388,3492.5,3492.3,5.5195512]
[1754133301128,0.9484,3492.7,3492.3,6.07150632]
[1754133301442,30.0,3492.9,3492.6,5.5195512]
[1754133301656,30.0,3492.6,3492.1,0.002]
[1754133301838,5.3364,3492.5,3492.1,0.002]
[1754133302146,0.9484,3492.4,3492.1,0.002]
[1754133302507,0.9484,3492.3,3492.1,0.002]
[1754133302722,4.388,3492.2,3492.1,0.002]
[1754133302925,5.3364,3492.2,3492.1,0.002]
[1754133303644,5.3364,3492.2,3492.1,5.5215512]
[1754133304356,35.3364,3492.2,3492.1,0.002]
[1754133306515,5.3364,3492.2,3492.1,0.002]
[1754133306829,7.0604,3492.2,3492.1,0.002]
[1754133307023,5.3364,3492.2,3492.1,0.002]
[1754133307215,35.3364,3492.2,3492.1,0.002]
[1754133310716,5.3364,3492.2,3492.1,0.002]
[1754133311454,35.3364,3492.2,3492.1,0.002]
[1754133312851,5.3364,3492.2,3492.1,0.002]
[1754133313223,35.3364,3492.2,3492.1,0.002]
[1754133319235,35.55406639,3492.2,3492.1,0.002]
[1754133324739,4.388,3492.2,3492.1,0.002]
[1754133325328,1.724,3492.6,3492.1,0.002]
[1754133325329,0.001,3492.8,3492.1,0.60232512]
[1754133325663,4.388,3492.7,3492.2,0.4841]
[1754133325841,4.388,3492.7,3492.3,0.1456]
[1754133326040,4.388,3492.7,3492.1,0.002]
[1754133326041,4.389,3492.8,3492.5,0.1432]
[1754133326256,0.001,3492.8,3492.6,0.4841]
[1754133326580,4.388,3493.0,3492.7,0.03103114]
[1754133326781,4.388,3493.0,3492.9,5.5195512]
[1754133327080,0.001,3493.5,3492.9,6.60401632]
[1754133327282,30.0,3494.5,3494.3,5.5195512]
[1754133327490,2.742,3494.4,3494.3,6.0012512]
[1754133327777,4.388,3494.4,3494.3,5.5195512]
[1754133327969,0.4326,3494.7,3494.3,5.5195512]
[1754133328174,4.8196,3494.6,3494.3,5.5195512]
[1754133328750,4.8196,3494.6,3494.1,0.4817]
[1754133328971,4.8196,3494.6,3494.2,0.4817]
[1754133329171,4.387,3494.6,3494.2,0.4817]
[1754133329361,4.387,3494.6,3493.8,8.03371333]
[1754133329677,4.387,3494.6,3493.9,1.29963133]
[1754133329976,4.387,3494.6,3494.0,0.4817]
[1754133330899,4.8196,3494.6,3494.0,0.4817]
[1754133331248,30.8957,3494.5,3493.6,0.4817]
[1754133331481,30.0,3494.3,3493.6,0.4817]
[1754133331658,4.386,3494.2,3493.6,0.4817]